Workbook

Sheet Base
B1: FONCTION DE RECHERCHE:RECHERCHEV | H1: 10
A2: Référence | B2: Désignation | C2: PRIX | D2: Stock Départ | E2: Stock | F2: Benefice | G2: Prix de revient | H2: Prix d'achat FCFA | I2: Prix d'achat € $ | J2: Valeur € | K2: Valeur $ | L2: Frais transi
A3: HA33S | B3: ALARME AUTONOME HA33S | C3: =G3*1.25 -> 148250 | D3: 30 | E3: =D3-SUMPRODUCT((FACTURIER!$A$11:$A$1000=Base!A3)*FACTURIER!$C$11:$C$1000) -> 28 | F3: =C3-G3 -> 29650 | G3: =H3+L3 -> 118600 | H3: =I3*J3*K3 -> 78600 | I3: 120 | J3: 655 | K3: 1 | L3: 40000
A4: SC84 | B4: ALARME AUTONOME IR SC84 | C4: =G4*1.25 -> 76962.5 | D4: 30 | E4: =D4-SUMPRODUCT((FACTURIER!$A$11:$A$1000=Base!A4)*FACTURIER!$C$11:$C$1000) -> 30 | F4: 15392.5 | G4: 61570 | H4: 61570 | I4: 94 | J4: 655 | K4: 1 | L4: 0
A5: ALC003 | B5: ALARME CENTRALE | C5: =G5*1.5 -> 0 | D5: 30 | E5: =D5-SUMPRODUCT((FACTURIER!$A$11:$A$1000=Base!A5)*FACTURIER!$C$11:$C$1000) -> 30 | F5: 0 | G5: 0 | H5: 0 | I5: 0 | J5: 0 | K5: 0 | L5: 0
A6: ALC004 | B6: ALARME CENTRALE | C6: 0 | D6: 30 | E6: =D6-SUMPRODUCT((FACTURIER!$A$11:$A$1000=Base!A6)*FACTURIER!$C$11:$C$1000) -> 30 | F6: 0 | G6: 0 | H6: 0 | I6: 0 | J6: 0 | K6: 0
A7: CM005 | B7: CAMERA | C7: 0 | D7: 30 | E7: =D7-SUMPRODUCT((FACTURIER!$A$11:$A$1000=Base!A7)*FACTURIER!$C$11:$C$1000) -> 30 | F7: 0 | G7: 0 | H7: 0
A8: CM006 | B8: CAMERA | C8: 0 | D8: 30 | E8: =D8-SUMPRODUCT((FACTURIER!$A$11:$A$1000=Base!A8)*FACTURIER!$C$11:$C$1000) -> 30 | F8: 0 | G8: 0 | H8: 0
A9: CM007 | B9: CAMERA | C9: 0 | D9: 30 | E9: =D9-SUMPRODUCT((FACTURIER!$A$11:$A$1000=Base!A9)*FACTURIER!$C$11:$C$1000) -> 30 | F9: 0 | G9: 0 | H9: 0
A10: HKV2032 | B10: CAMERA 120 WDR | C10: 138240 | D10: 30 | E10: =D10-SUMPRODUCT((FACTURIER!$A$11:$A$1000=Base!A10)*FACTURIER!$C$11:$C$1000) -> 30 | F10: 46080 | G10: 92160 | H10: 42160 | I10: 68 | J10: 1 | K10: 620 | L10: 50000
A11: HKV2042 | B11: CAMERA -IW 120 WDR | C11: 152310 | D11: 30 | E11: =D11-SUMPRODUCT((FACTURIER!$A$11:$A$1000=Base!A11)*FACTURIER!$C$11:$C$1000) -> 27 | F11: 50770 | G11: 101540 | H11: 41540 | I11: 67 | J11: 1 | K11: 620 | L11: 60000
A12: HKV2542 | B12: CAMERA -IWS 120db | C12: 179280 | D12: 30 | E12: =D12-SUMPRODUCT((FACTURIER!$A$11:$A$1000=Base!A12)*FACTURIER!$C$11:$C$1000) -> 30 | F12: 59760 | G12: 119520 | H12: 59520 | I12: 96 | J12: 1 | K12: 620 | L12: 60000
A13: HKV7108 | B13: ENREGISTREUR | C13: 194160 | D13: 30 | E13: =D13-SUMPRODUCT((FACTURIER!$A$11:$A$1000=Base!A13)*FACTURIER!$C$11:$C$1000) -> 30 | F13: 64720 | G13: 129440 | H13: 69440 | I13: 112 | J13: 1 | K13: 620 | L13: 60000
A14: HKV012 | B14: CAMERA | C14: 0 | D14: 30 | E14: =D14-SUMPRODUCT((FACTURIER!$A$11:$A$1000=Base!A14)*FACTURIER!$C$11:$C$1000) -> 27 | F14: 0 | G14: 0 | H14: 0
A15: HKV013 | B15: CAMERA | C15: 0 | D15: 30 | E15: =D15-SUMPRODUCT((FACTURIER!$A$11:$A$1000=Base!A15)*FACTURIER!$C$11:$C$1000) -> 30 | F15: 0 | G15: 0 | H15: 0 | I15: 0 | J15: 0 | K15: 0
A16: CS50 | B16: CARTE FREQUENCE S50 | C16: 1950 | D16: 30 | E16: =D16-SUMPRODUCT((FACTURIER!$A$11:$A$1000=Base!A16)*FACTURIER!$C$11:$C$1000) -> 24 | F16: 650 | G16: 1300 | H16: 300 | I16: 0.5 | J16: 1 | K16: 600 | L16: 1000
A17: CS70 | B17: CARTE FREQUENCE S70 | C17: 2130 | D17: 30 | E17: =D17-SUMPRODUCT((FACTURIER!$A$11:$A$1000=Base!A17)*FACTURIER!$C$11:$C$1000) -> 30 | F17: 710 | G17: 1420 | H17: 420 | I17: 0.7 | J17: 1 | K17: 600 | L17: 1000
A18: CF016 | B18: CARTE FREQUENCE | C18: 0 | D18: 30 | E18: =D18-SUMPRODUCT((FACTURIER!$A$11:$A$1000=Base!A18)*FACTURIER!$C$11:$C$1000) -> 29 | F18: 0 | G18: 0 | H18: 0
A19: RFID01 | B19: CLAVIER DIGICODE RFID ACCES | C19: =G19*1.25 -> 62500 | D19: 30 | E19: =D19-SUMPRODUCT((FACTURIER!$A$11:$A$1000=Base!A19)*FACTURIER!$C$11:$C$1000) -> 30 | F19: 12500 | G19: 50000 | H19: 50000 | I19: 50000 | J19: 1 | K19: 1

Sheet FACTURIER
A5: Code | B5: =CONCATENATE(B6,E7) -> AZIZEFT0133
A6: Client | B6: AZIZE | D6: Date: | E6: =TODAY() -> 42781
A7: Adresse | D7: FACTURE | E7: FT0133
A8: Contact
A10: Référence | B10: Désignation | C10: Qté | D10: Prix unitaire | E10: Montant total
A11: ha33s | B11: =VLOOKUP(A11,[1]Base!A3:D200,2,FALSE) -> ALARME AUTONOME HA33S | C11: 2 | D11: =VLOOKUP(A11,[2]Base!A3:D200,3,FALSE) -> 148250 | E11: =C11*D11 -> 296500
A12: CS50 | B12: =VLOOKUP(A12,[1]Base!A3:D201,2,FALSE) -> CARTE FREQUENCE S50 | C12: 6 | D12: =VLOOKUP(A12,[2]Base!A4:D201,3,FALSE) -> 1950 | E12: 11700
A13: CF016 | B13: =VLOOKUP(A13,[1]Base!A3:D202,2,FALSE) -> CARTE FREQUENCE | C13: 1 | D13: =VLOOKUP(A13,[2]Base!A3:D202,3,FALSE) -> 0 | E13: 0
A14: HKV012 | B14: =VLOOKUP(A14,[1]Base!A3:D203,2,FALSE) -> CAMERA HKV | C14: 3 | D14: =VLOOKUP(A14,[2]Base!A4:D203,3,FALSE) -> 0 | E14: 0
A15: HKV2042 | B15: =VLOOKUP(A15,[1]Base!A3:D204,2,FALSE) -> CAMERA HKV DS-2CD2042WD-IW 120 WDR | C15: 3 | D15: =VLOOKUP(A15,[2]Base!A3:D204,3,FALSE) -> 152310 | E15: 456930
D19: Main d'œuvre | E19: 45000
D21: Total HT | E21: =SUM(E11:E20) -> 810130
C22: 0 | D22: TVA | E22: =IF(C22>0,E21*0.18,0) -> 0
D23: Acompte | E23: 0
D24: Net a payer | E24: =IF(E23>0,(E21+E22)-E23,E21+E22) -> 810130
